Cogmind - Beta 13 @@@ ROGUE MODE // 2024.04.18 @ 21:02:55 Player: Exceptionally Mediocre Result: Destroyed by 37-3XV(R) with Subdweller Laser Performance ------------- Evolutions (0) 0 Regions Visited (2) 400 Robots Destroyed (24) 120 Value Destroyed (542) 542 Prototype IDs (10) 200 Alien Tech Used (0) 0 Bonus (0) 0 TOTAL SCORE: 1262 Bonus ------- None Cogmind --------- Core Integrity 0/250 Matter 217/300 Energy 85/100 System Corruption 0% Temperature Cool (6) Movement Treading (610) Ox5 Location -10/Subcaves Parts ------- > --- POWER (1) -------- (None) > --- PROPULSION (2) --- Light Treads Spiked Treads > --- UTILITY (2) ------ Humpback > --- WEAPON (2) ------- Battle Rifle Flamer > --- INVENTORY (35) --- Light Treads Light Treads Light Treads Small Storage Unit Core Shielding Light Armor Plating Hacking Suite Power Bank Subdweller Laser Assault Rifle Light Cannon Hammer Shrapnel Trap Scrap Shield Fragment (40) Peak State ------------ > --- POWER ------------ Ion Engine > --- PROPULSION ------- Light Treads Spiked Treads > --- UTILITY ---------- Humpback > --- WEAPON ----------- Battle Rifle Subdweller Machine Gun > --- INVENTORY -------- Light Treads Light Treads Light Treads Small Storage Unit Core Shielding Light Armor Plating Hacking Suite Power Bank Subdweller Laser Assault Rifle Light Cannon Flamer Hammer Shrapnel Trap Scrap Shield Fragment [Rating: 12] Favorites ----------- Power Ion Engine Engine Ion Engine Propulsion Light Treads Treads Light Treads Utility Humpback Storage Humpback Protection Light Armor Plating Weapon Subdweller Machine Gun Ballistic Gun Subdweller Machine Gun Ballistic Cannon Light Cannon Special Weapon Flamer Impact Weapon Hammer Build | -11 -10 -10 ------- Run | Yrd Mat Sub Slots Evolved . | . . . Power . | . . . Propulsion . | . . . Utility . | . . . Weapon . | . . . Parts Attached 34 | 6 10 18 Power 3 | 1 . 2 Engine 3 | 1 . 2 Core . | . . . Reactor . | . . . Propulsion 8 | 2 3 3 Treads 8 | 2 3 3 Leg . | . . . Wheel . | . . . Hover . | . . . Flight . | . . . Utility 7 | 1 3 3 Device . | . . . Storage 2 | 1 . 1 Processor . | . . . Hackware . | . . . Protection 5 | . 3 2 Artifact . | . . . Weapon 16 | 2 4 10 Energy Gun . | . . . Energy Cannon . | . . . Ballistic Gun 10 | 2 2 6 Ballistic Cannon 1 | . 1 . Launcher . | . . . Special Weapon 1 | . . 1 Impact Weapon 4 | . 1 3 Slashing Weapon . | . . . Piercing Weapon . | . . . Special Melee Weapon . | . . . Unidentified Prototypes . | . . . Parts Lost 5 | . . 5 Power 1 | . . 1 Propulsion . | . . . Utility 2 | . . 2 Weapon 2 | . . 2 Highest Loss Streak 3 | . . 3 To Critical Strikes . | . . . Average Slot Usage (%) 90 | . 98 87 Engine 13 | . 14 13 Treads 28 | . 28 28 Storage 14 | . 14 14 Protection 4 | . 12 2 Ballistic Gun 20 | . 24 19 Ballistic Cannon 1 | . 3 . Impact Weapon 5 | . . 7 Naked Turns . | . . . Heaviest Build 211 | 13 18 211 Greatest Support 40 | 40 40 40 Greatest Overweight (x) 5 | 2 . 5 Average Overweight (x) 1 | . . 3 Largest Inventory Capacity 35 | 8 8 35 Average Capacity 24 | 7 8 31 Most Carried 15 | 6 8 15 Average Carried 9 | 2 7 10 Final Capacity 35 | 8 8 35 Final Carried 14 | 6 8 14 Class Distribution -------------------- 61% | Hauler-Mutant 38% | Mutant Dominant Class ---------------- Mutant | -10/Materials Hauler-Mutant | -10/Subcaves Resources | -11 -10 -10 ----------- Run | Yrd Mat Sub Matter Collected 804 | 284 331 189 Remotely . | . . . Salvage Created 728 | 93 493 142 Parts 51 | 7 35 9 Haulers Intercepted 2 | . 2 . Recyclers Shooed 2 | . 2 . Parts Field Recycled . | . . . Retrieved Matter . | . . . Parts Self-Destructed 5 | . . 5 Prevented . | . . . Kills | -11 -10 -10 ------- Run | Yrd Mat Sub Combat Hostiles Destroyed 15 | . 10 5 Guns 14 | . 9 5 AOE 1 | . 1 . Classes Destroyed 8 | 2 5 1 Tunneler 2 | 2 . . Hauler 2 | . 2 . Recycler 1 | 1 . . Operator 1 | . 1 . Watcher 3 | . 3 . Swarmer 5 | . 3 2 Grunt 7 | . 7 . Subdweller 3 | . . 3 Best Kill Streak 3 | 2 3 2 Combat Bots Only 3 | . 3 2 Max Kills in Single Turn 2 | 1 2 1 Gunslinging . | . . . Exploded 1 | . 1 . Melee . | . . . Uniques/NPCs Destroyed . | . . . Combat | -11 -10 -10 -------- Run | Yrd Mat Sub Hostile Shots Fired 122 | . 48 74 Missed 32 | . 10 22 Damage Taken 1412 | . 380 1032 Core 254 | . 50 204 Absorbed by Shields . | . . . Core Remaining (%) 100 | 100 . . Volleys Fired 92 | 6 59 27 Largest 2 | 2 2 2 Hottest 60 | 40 40 60 Shots Fired 173 | 12 113 48 Gun 173 | 12 113 48 Cannon . | . . . Launcher . | . . . Special . | . . . Kinetic 173 | 12 113 48 Thermal . | . . . Explosive . | . . . Electromagnetic . | . . . Robot Hit Streak 23 | 10 12 23 Robot Miss Streak 9 | . 9 3 Penetration Max . | . . . Secondary Targets 2 | . 1 1 Max Gunslinging Chain 1 | . 1 1 Shots Hit Robots 109 | 10 61 38 Core Hits 43 | 4 30 9 Critical Kills 1 | . . 1 Critical Parts Destroyed . | . . . Critical Strikes 3 | . . 3 Destroy 3 | . . 3 Melee Attacks 33 | . . 33 Impact 33 | . . 33 Slashing . | . . . Piercing . | . . . Sneak Attacks . | . . . Combat Hostiles . | . . . Follow-up Attacks . | . . . Damage Inflicted 1646 | 103 847 696 Guns 1481 | 103 682 696 Cannons . | . . . Explosions 165 | . 165 . Melee . | . . . Ramming . | . . . Kinetic 1481 | 103 682 696 Thermal . | . . . Explosive 165 | . 165 . Electromagnetic . | . . . Impact . | . . . Slashing . | . . . Piercing . | . . . Highest Corruption . | . . . Average Corruption . | . . . Corruption Purged . | . . . Corruption Blocked . | . . . Overload Shots . | . . . Overflow Damage . | . . . Projectiles . | . . . Explosions . | . . . Melee . | . . . Knockbacks . | . . . Impact . | . . . Kinetic . | . . . Secondary . | . . . Self-Inflicted Damage . | . . . Shots . | . . . Rammed . | . . . Targets Rammed . | . . . Kicked . | . . . Crushed . | . . . Highest Temperature 292 | . 26 292 Average Temperature 34 | . 8 163 Received Heat Transfer 597 | . 114 483 Siege Activations . | . . . Robots Corrupted . | . . . Combat Hostiles . | . . . Parts Fried . | . . . Impact Corruptions . | . . . Robots Melted . | . . . Combat Hostiles . | . . . Parts Melted 2 | . . 2 Heat Transferred . | . . . Parts Sabotaged . | . . . Parts Stolen . | . . . Parts Stripped . | . . . Power Chain Reactions . | . . . Alert | -11 -10 -10 ------- Run | Yrd Mat Sub Peak Influence 223 | 15 223 . Initial 9 | . 9 . Average 54 | 5 59 . Maximum Alert Level 1 | . 1 . Low Security (%) 95 | 100 94 . Level 1 4 | . 5 . Level 2 . | . . . Level 3 . | . . . Level 4 . | . . . Level 5 . | . . . High Security . | . . . Max Security . | . . . Squads Dispatched 2 | . 2 . Investigation 1 | . 1 . Extermination . | . . . Reinforcement 1 | . 1 . Assault . | . . . Garrison . | . . . Intercept . | . . . Searches Triggered . | . . . Construction Impeded . | . . . Haulers Reinforced . | . . . Active Scanning Responses . | . . . Cargo Convoy Interrupts . | . . . Stealth | -11 -10 -10 --------- Run | Yrd Mat Sub Distress Signals 1 | . 1 . Communications Jammed . | . . . Distress Signals . | . . . Times Spotted 27 | . 19 8 Peak Tracking Total 3 | . 3 3 Tactical Retreats . | . . . Traps | -11 -10 -10 ------- Run | Yrd Mat Sub Traps Triggered 1 | . 1 . Indirectly . | . . . Trap Hack Attempts . | . . . Triggered . | . . . Disarmed . | . . . Reprogrammed . | . . . Reused . | . . . Traps Extracted . | . . . Installed . | . . . Triggered . | . . . Most Traps Carried 1 | . . 1 Machines | -11 -10 -10 ---------- Run | Yrd Mat Sub Machines Disabled 3 | . 2 1 Max in Single Turn 2 | . 2 1 Machines Repaired . | . . . Machines Dismantled . | . . . Machines Sabotaged . | . . . Overloaded Fab Kills . | . . . Hacking | -11 -10 -10 --------- Run | Yrd Mat Sub Machines Accessed 8 | . 6 2 Terminals 5 | . 5 . Fabricators . | . . . Repair Stations . | . . . Recycling Units 1 | . 1 . Scanalyzers . | . . . Garrison Access . | . . . Total Hacks 12 | . 9 3 Successful 9 | . 6 3 Failed 3 | . 3 . Catastrophic . | . . . Database Lockouts . | . . . Manual 8 | . 8 . Terminals 8 | . 8 . Fabricators . | . . . Repair Stations . | . . . Recycling Units 1 | . 1 . Scanalyzers . | . . . Garrison Access . | . . . Terminal Hacks 3 | . . 3 Record 2 | . . 2 Derelict Proto ID Bank 1 | . . 1 Fabricator Hacks . | . . . Repair Station Hacks . | . . . Recycling Unit Hacks 1 | . 1 . Retrieve Components 1 | . 1 . Scanalyzer . | . . . Garrison Access Hacks . | . . . Unauthorized Hacks 5 | . 5 . Terminals 5 | . 5 . Botnet 5 | . 5 . Fabricators . | . . . Repair Stations . | . . . Recycling Units . | . . . Scanalyzers . | . . . Garrison Access . | . . . Data Cores Recovered . | . . . Used . | . . . Hacking Detections 3 | . 3 . Full Trace Events . | . . . Feedback Events . | . . . Feedback Blocked . | . . . Robot Schematics Acquired . | . . . Robots Built . | . . . Authchips . | . . . Time . | . . . Total Robot Build Rating . | . . . Part Schematics Acquired . | . . . Parts Built . | . . . Authchips . | . . . Time . | . . . Total Part Build Rating . | . . . Parts Repaired . | . . . Time . | . . . Parts Recycled . | . . . Recycled Matter . | . . . Retrieved Matter . | . . . Retrieved Components 3 | . 3 . Parts Scanalyzed . | . . . Part Schematics Acquired . | . . . Parts Damaged . | . . . Bothacking | -11 -10 -10 ------------ Run | Yrd Mat Sub Used RIF Installer . | . . . Robots Hacked . | . . . Non-combat . | . . . Combat . | . . . Robot Hacks Applied . | . . . Relay Couplers Released . | . . . Fabnet Peak Effective % . | . . . Robots Rewired . | . . . Allies Hacked . | . . . Hacks Repelled . | . . . Allies | -11 -10 -10 -------- Run | Yrd Mat Sub Total Allies . | . . . Largest Group . | . . . Highest-Rated Group . | . . . Highest-Rated Ally . | . . . Total Orders . | . . . Ally Attacks . | . . . Total Damage . | . . . Kills . | . . . Allies Corrupted . | . . . Allies Melted . | . . . Intel | -11 -10 -10 ------- Run | Yrd Mat Sub Robot Analysis Total . | . . . Derelict Logs Recovered . | . . . Drone Launches . | . . . Drone Recoveries . | . . . Exploration | -11 -10 -10 ------------- Run | Yrd Mat Sub Turns Passed 5622 | 139 1455 4028 Spaces Moved 1744 | 72 768 904 Core 9 | 9 . . Treads 1735 | 63 768 904 Legs . | . . . Wheels . | . . . Hover . | . . . Flight . | . . . Fastest Speed 50 | 50 160 160 Average Speed 295 | 150 160 422 Slowest Speed 610 | 160 160 610 Overloaded Moves . | . . . Propulsion Burnouts . | . . . Robots Hopped . | . . . Cave-ins Triggered . | . . . Exploration Rate (%) 50 | 4 99 49 Regions Visited 2 Branch Regions 1 Pre-discovered Areas . | . . . Known Exits Taken . | . . . Unknown Exits Taken 2 | 1 1 . Scrap Searched 1 | . . 1 Spaces Dug 1 | . . 1 Terrain Destroyed 10 | . 9 1 Melee 1 | . . 1 Projectile . | . . . AOE 9 | . 9 . Terrain Rammed . | . . . Walls Destroyed . | . . . Machines Disabled . | . . . Actions | -11 -10 -10 --------- Run | Yrd Mat Sub Total 1993 | 89 895 1009 Wait 38 | . 31 7 Move 1742 | 71 767 904 Hop . | . . . Pick Up 33 | 6 14 13 Fast Attach 11 | 6 3 2 Attach 4 | . . 4 Detach 1 | . . 1 Swap 19 | . 7 12 Drop 20 | . 14 6 Fire 92 | 6 59 27 Melee 33 | . . 33 Ram . | . . . Kick . | . . . Crush . | . . . Escape Stasis . | . . . Rewire . | . . . Trap . | . . . Miscellaneous . | . . . Route ------- -11/Scrapyard -10/Materials (discovered 6 exits: [*Mat x3] / [*Min x2] / *Sub) -10/Subcaves History --------- Turn | Location | Event 20 | -11/Scrapyard | Discovered new exit (range 15) 140 | -11/Scrapyard | Entered Materials 301 | -10/Materials | Build established: Mutant 498 | -10/Materials | Discovered new exit (range 7) 708 | -10/Materials | Discovered new exit (range 10) 1090 | -10/Materials | Discovered new exit (range 15) 1213 | -10/Materials | Discovered new exit (range 8) 1428 | -10/Materials | Discovered new exit (range 5) 1564 | -10/Materials | Discovered new exit (range 11) 1595 | -10/Materials | Entered Subcaves 1715 | -10/Subcaves | Visited Clippyterm 2199 | -10/Subcaves | Lost 3 parts (2u1w) 2460 | -10/Subcaves | Build established: Hauler-Mutant 3445 | -10/Subcaves | Visited 4L-MR0's lab 3491 | -10/Subcaves | Found Power Bank 4604 | -10/Subcaves | Shifting Twisted Machinery released Flamer 4612 | -10/Subcaves | Shifting Twisted Machinery released Spk. Treads 5370 | -10/Subcaves | A swath of the cavern ceiling suddenly collapsed 5603 | -10/Subcaves | Core integrity fell below 50% 5619 | -10/Subcaves | Core integrity fell below 20% 5623 | -10/Subcaves | Destroyed by 37-3XV(R) with Subdweller Laser Last Messages --------------- Gun Armor Power Bank Rainbow Chip VL-GR5's Exoskeleton "Deathgrip" Powered Cannon 03477_ Testing Chamber breached. 03491_ Acquired Power Bank. 04460_ Acquired Sub. Laser. 04556_ Acquired Battle Rifle. Flamer falls loose from the Twisted Machinery. Spk. Treads falls loose from the Twisted Machinery. 04670_ Acquired Flamer. 04677_ Acquired Spk. Treads. A swath of the cavern ceiling suddenly collapses. 05588_ 37-3XV(R): "WEHOME!" 05595_ Ion Engine destroyed. 05616_ 37-3XV(R) suffers critical hit (Destroy). 05620_ Sub. Machine Gun destroyed. Map ----- +----------------------------------------------------+ | ?????????????????????????????????????????????????? | | ?????????????????????????????????????????????????? | | ?????????????????????????????????????????????????? | | ?????????????????????????????????????????????????? | | ?????????????????????????????????????????????????? | | ?????????????????????????????????????????????????? | | ?????????????????????????????????????????????????? | | ?????????????????????????? #?????????????????????? | | ????????????????????????? ?????????????????????? | | ????????????????????????? ?????????????????????? | | ??###???????????????????? ?????????????????????? | | ### ##??????????????????? ?????????????????????? | | ##?????????????????### ?????????????????????? | | "##????????????????? ?????????????????????? | | ##"#### #????????? ####?????????????????? | | " " "# ##?????????? #??""?????????????? | | "###" #####" #????????? "?""""????????????? | | ##"#""""#" #?????????? """ """????????????? | | ##### "#"###??###????? "" """"????????????? | | ## #???## #"##??## ##????? "" "??????????????? | | ## #???#"#""#??#; ####?? "" ????????????????? | | #??#"""# ?#;; # #### #?????????????????? | | ##??#"" ## ### ## " #?????????????????? | | ###???#""# ###" RR" #?????????????????? | | ##?????#####" # ## R " #?????????????????? | | ###??????????##"# ###### @#### #?????????????????? | | ??????????????#####????####???##?????????????????? | | ?????????????????????????????????????????????????? | | ?????????????????????????????????????????????????? | | ?????????????????????????????????????????????????? | | ?????????????????????????????????????????????????? | | ?????????????????????????????????????????????????? | | ?????????????????????????????????????????????????? | | ?????????????????????????????????????????????????? | | ?????????????????????????????????????????????????? | | ?????????????????????????????????????????????????? | | ?????????????????????????????????????????????????? | | ?????????????????????????????????????????????????? | | ?????????????????????????????????????????????????? | | ?????????????????????????????????????????????????? | | ?????????????????????????????????????????????????? | | | | | | | | | | | | | | | | | | | +----------------------------------------------------+ Best States ------------- Heat Dissipation 25 Energy Generation 15 Energy Capacity 250 Matter Stores 300 Matter Capacity 300 Sight Range 16 Terrain Scan Density 10 Armor Coverage 150 Evasion (%) 40 Recoil Reduction 2 Item Schematics ----------------- None Robot Schematics ------------------ None Fabricated ------------ Nothing Alien Tech Used ----------------- None Achievements -------------- None Challenges ------------ None Game ------ Seed AutogunPhasePod Manual? 0 Play Time 00:19:07 Cumulative 77.9 hours Start 2024.04.18 @ 20:40:47 End 2024.04.18 @ 21:02:55 Sessions 1 Manual Loads 0 Difficulty Rogue Special Mode None Game No. 96 Rogue 96 Adventurer 0 Explorer 0 Win Type - Total 0 Types 0/0/0/0/0/0/0/0/0 Lore% 20 Gallery% 45 Achievement% 30 Wizard Run 0 Options --------- Layout 1 ASCII 0 Keyboard 1 Movement Vi Keybinds 0 Fullscreen 1 Font 24/Smallcaps Map View 50x35 Zoom Use 0% Tactical HUD 1 Map Filters NONE Filters NONE Steam 1 RUN: fdba9533-871c-4043-88c1-b0b823112727